fUST/lending_fUST_20250523
["ID","MTS","AMOUNT","RATE_DAILY","PERIOD"]
[362001861,1747932636621,-1068.15,0.00021917,2]
[362001862,1747932636632,-430.0,0.00021917,2]
[362001863,1747932636642,-502.96,0.00021917,2]
[362001864,1747932636651,-2758.11,0.00021917,2]
[362001865,1747932636661,-430.0,0.00021917,2]
[362001866,1747932636672,-400.0,0.00021917,2]
[362001867,1747932636682,-430.0,0.00021917,2]
[362001868,1747932636692,-430.0,0.00021917,2]
[362001869,1747932636702,-430.0,0.00021917,2]
[362001870,1747932636712,-430.0,0.00021917,2]
[362001871,1747932636722,-344.94357307,0.00021917,2]
[362001872,1747932636732,-281.85841287,0.00021917,2]
[362001873,1747932636743,-430.0,0.00021917,2]
[362001874,1747932636753,-636.17,0.00021917,2]
[362001875,1747932636763,-430.0,0.00021917,2]
[362001876,1747932636773,-430.0,0.00021917,2]
[362001877,1747932636783,-430.0,0.00021917,2]
[362001878,1747932636793,-664.32,0.00021917,2]
[362001879,1747932636803,-430.0,0.00021917,2]
[362001880,1747932636813,-1599.86,0.00021917,2]
[362001881,1747932636823,-202.80298717,0.00021917,2]
[362001882,1747932636833,-532.06703405,0.00021917,2]
[362001883,1747932636844,-430.0,0.00021917,2]
[362001884,1747932636854,-430.0,0.00021917,2]
[362001885,1747932636864,-430.0,0.00021917,2]
[362001886,1747932636874,-430.0,0.00021917,2]
[362001887,1747932636887,-1335.59,0.00021917,2]
[362001888,1747932636897,-430.0,0.00021917,2]
[362001889,1747932636907,-430.0,0.00021917,2]
[362001890,1747932636917,-430.0,0.00021917,2]
[362001891,1747932636927,-430.0,0.00021917,2]
[362001892,1747932636937,-430.0,0.00021917,2]
[362001893,1747932636947,-430.0,0.00021917,2]
[362001894,1747932636959,-430.0,0.00021917,2]
[362001895,1747932636969,-430.0,0.00021917,2]
[362001896,1747932636980,-430.0,0.00021917,2]
[362001897,1747932636992,-430.0,0.00021917,2]
[362001898,1747932637001,-430.0,0.00021917,2]
[362001899,1747932637011,-9259.29,0.00021917,2]
[362001900,1747932637022,-430.0,0.00021917,2]
[362001901,1747932637032,-1261.07,0.00021917,2]
[362001902,1747932637042,-430.0,0.00021917,2]
[362001903,1747932637052,-797.24,0.00021917,2]
[362001904,1747932637062,-430.0,0.00021917,2]
[362001905,1747932637076,-430.0,0.00021917,2]
[362001906,1747932637086,-430.0,0.00021917,2]
[362001907,1747932637096,-242.7196056,0.00021917,2]
[362001908,1747932637106,-430.0,0.00021917,2]
[362001909,1747932637119,-430.0,0.00021917,2]
[362001910,1747932637130,-430.0,0.00021917,2]
[362001911,1747932637142,-292.53120378,0.00021917,2]
[362001912,1747932637152,-430.0,0.00021917,2]
[362001913,1747932637163,-1231.4,0.00021917,2]
[362001914,1747932637175,-430.0,0.00021917,2]
[362001915,1747932637184,-430.0,0.00021917,2]
[362001916,1747932637195,-430.0,0.00021917,2]
[362001917,1747932637205,-430.0,0.00021917,2]
[362001918,1747932637215,-430.0,0.00021917,2]
[362001919,1747932637226,-430.0,0.00021917,2]
[362001920,1747932637236,-430.0,0.00021917,2]
[362001921,1747932637247,-430.0,0.00021917,2]
[362001922,1747932637257,-494.62204017,0.00021917,2]
[362001923,1747932637268,-202.95,0.00021917,2]
[362001924,1747932637278,-439.30617727,0.00021917,2]
[362001925,1747932637289,-430.0,0.00021917,2]
[362001926,1747932637300,-430.0,0.00021917,2]
[362001927,1747932637312,-430.0,0.00021917,2]
[362001928,1747932637323,-1110.51,0.00021917,2]
[362001929,1747932637333,-430.0,0.00021917,2]
[362001930,1747932637344,-430.0,0.00021917,2]
[362001931,1747932637355,-1038.57,0.00021917,2]
[362001932,1747932637366,-430.0,0.00021917,2]
[362001933,1747932637377,-557.40765434,0.00021917,2]
[362001934,1747932637388,-3273.7,0.00021917,2]
[362001935,1747932637397,-430.0,0.00021917,2]
[362001936,1747932637418,-430.0,0.00021917,2]
[362001937,1747932637430,-400.0,0.00021917,2]
[362001938,1747932637441,-430.0,0.00021917,2]
[362001939,1747932637452,-430.0,0.00021917,2]
[362001940,1747932637463,-430.0,0.00021917,2]
[362001941,1747932637474,-430.0,0.00021917,2]
[362001942,1747932637485,-430.0,0.00021917,2]
[362001943,1747932637496,-430.0,0.00021917,2]
[362001944,1747932637507,-430.0,0.00021917,2]
[362001945,1747932637519,-430.0,0.00021917,2]
[362001947,1747932637530,-430.0,0.00021917,2]
[362001948,1747932637541,-430.0,0.00021917,2]
[362001949,1747932637552,-488.98,0.00021917,2]
[362001950,1747932637563,-430.0,0.00021917,2]
[362001951,1747932637573,-400.0,0.00021917,2]
[362001953,1747932637583,-430.0,0.00021917,2]
[362001955,1747932637594,-430.0,0.00021917,2]
[362001956,1747932637606,-6308.13,0.00021917,2]
[362001957,1747932637616,-430.0,0.00021917,2]
[362001958,1747932637626,-791.66,0.00021917,2]
[362001959,1747932637639,-430.0,0.00021917,2]
[362001981,1747932637838,-430.0,0.00021917,2]
[362001984,1747932637859,-401.29280324,0.00021917,2]
[362001986,1747932637869,-430.0,0.00021917,2]
[362001988,1747932637879,-430.0,0.00021917,2]
[362001990,1747932637890,-340.0,0.00021917,2]
[362001992,1747932637900,-481.69763156,0.00021917,2]
[362001994,1747932637910,-430.0,0.00021917,2]
[362001996,1747932637920,-340.0,0.00021917,2]
[362001998,1747932637930,-430.0,0.00021917,2]
[362002000,1747932637940,-430.0,0.00021917,2]
[362002003,1747932637956,-430.0,0.00021917,2]
[362002005,1747932637966,-430.0,0.00021917,2]
[362002007,1747932637976,-430.0,0.00021917,2]
[362002009,1747932637987,-430.0,0.00021917,2]
[362002011,1747932637998,-430.0,0.00021917,2]
[362002013,1747932638008,-400.0,0.00021917,2]
[362002015,1747932638018,-430.0,0.00021917,2]
[362002017,1747932638028,-430.0,0.00021917,2]
[362002019,1747932638039,-430.0,0.00021917,2]
[362002021,1747932638049,-483.59,0.00021917,2]
[362002023,1747932638058,-430.0,0.00021917,2]
[362002025,1747932638069,-930.64,0.00021917,2]
[362002028,1747932638079,-1724.96,0.00021917,2]
[362002030,1747932638090,-430.0,0.00021917,2]
[362002032,1747932638100,-430.0,0.00021917,2]
[362002033,1747932638110,-300.0,0.00021917,2]
[362002035,1747932638119,-430.0,0.00021917,2]
[362002037,1747932638130,-430.0,0.00021917,2]
[362002038,1747932638141,-430.0,0.00021917,2]
[362002039,1747932638151,-430.0,0.00021917,2]
[362002041,1747932638162,-430.0,0.00021917,2]
[362002043,1747932638172,-430.0,0.00021917,2]
[362002044,1747932638183,-430.0,0.00021917,2]
[362002045,1747932638193,-430.0,0.00021917,2]
[362002046,1747932638203,-3023.78,0.00021917,2]
[362002047,1747932638213,-430.0,0.00021917,2]
[362002048,1747932638224,-430.0,0.00021917,2]
[362002049,1747932638234,-975.94,0.00021917,2]
[362002050,1747932638244,-430.0,0.00021917,2]
[362002051,1747932638254,-430.0,0.00021917,2]
[362002052,1747932638264,-1606.52,0.00021917,2]
[362002053,1747932638274,-430.0,0.00021917,2]
[362002054,1747932638285,-430.0,0.00021917,2]
[362002055,1747932638295,-947.03,0.00021917,2]
[362002056,1747932638307,-430.0,0.00021917,2]
[362002057,1747932638318,-430.0,0.00021917,2]
[362002058,1747932638329,-430.0,0.00021917,2]
[362002059,1747932638339,-764.85,0.00021917,2]
[362002060,1747932638349,-430.0,0.00021917,2]
[362002061,1747932638359,-430.0,0.00021917,2]
[362002062,1747932638369,-430.0,0.00021917,2]
[362002063,1747932638380,-430.0,0.00021917,2]
[362002064,1747932638392,-430.0,0.00021917,2]
[362002065,1747932638402,-3007.17,0.00021917,2]
[362002066,1747932638412,-430.0,0.00021917,2]
[362002067,1747932638422,-430.0,0.00021917,2]
[362002068,1747932638432,-218.09464831,0.00021917,2]
[362002069,1747932638442,-839.07,0.00021917,2]
[362002070,1747932638451,-430.0,0.00021917,2]
[362002071,1747932638462,-430.0,0.00021917,2]
[362002072,1747932638471,-2117.71,0.00021917,2]
[362002073,1747932638480,-430.0,0.00021917,2]
[362002074,1747932638490,-890.06,0.00021917,2]
[362002075,1747932638500,-430.0,0.00021917,2]
[362002076,1747932638510,-430.0,0.00021917,2]
[362002077,1747932638520,-430.0,0.00021917,2]
[362002078,1747932638531,-430.0,0.00021917,2]
[362002079,1747932638541,-430.0,0.00021917,2]
[362002080,1747932638551,-430.0,0.00021917,2]
[362002081,1747932638561,-430.0,0.00021917,2]
[362002082,1747932638572,-430.0,0.00021917,2]
[362002083,1747932638583,-450.0,0.00021917,2]
[362002084,1747932638593,-430.0,0.00021917,2]
[362002085,1747932638603,-430.0,0.00021917,2]
[362002086,1747932638613,-430.0,0.00021917,2]
[362002087,1747932638623,-430.0,0.00021917,2]
[362002088,1747932638634,-430.0,0.00021917,2]
[362002089,1747932638643,-430.0,0.00021917,2]
[362002090,1747932638654,-430.0,0.00021917,2]
[362002091,1747932638664,-571.04,0.00021917,2]
[362002092,1747932638673,-430.0,0.00021917,2]
[362002093,1747932638683,-430.0,0.00021917,2]
[362002094,1747932638693,-400.0,0.00021917,2]
[362002095,1747932638702,-430.0,0.00021917,2]
[362002096,1747932638712,-1076.37,0.00021917,2]
[362002097,1747932638722,-430.0,0.00021917,2]
[362002098,1747932638732,-430.0,0.00021917,2]
[362002099,1747932638741,-430.0,0.00021917,2]
[362002100,1747932638752,-430.0,0.00021917,2]
[362002101,1747932638762,-430.0,0.00021917,2]
[362002102,1747932638771,-430.0,0.00021917,2]
[362002103,1747932638781,-430.0,0.00021917,2]
[362002104,1747932638790,-430.0,0.00021917,2]
[362002105,1747932638800,-1007.87,0.00021917,2]
[362002106,1747932638809,-430.0,0.00021917,2]
[362002107,1747932638819,-3067.67,0.00021917,2]
[362002108,1747932638828,-430.0,0.00021917,2]
[362002109,1747932638838,-2086.85,0.00021917,2]
[362002110,1747932638847,-1822.69,0.00021917,2]
[362002111,1747932638856,-430.0,0.00021917,2]
[362002112,1747932638866,-430.0,0.00021917,2]
[362002113,1747932638876,-972.32,0.00021917,2]
[362002114,1747932638888,-500.0,0.00021917,2]
[362002115,1747932638898,-400.0,0.00021917,2]
[362002116,1747932638907,-840.99,0.00021917,2]
[362002117,1747932638917,-2400.04,0.00021917,2]
[362002118,1747932638926,-430.0,0.00021917,2]
[362002119,1747932638935,-430.0,0.00021917,2]
[362002120,1747932638945,-430.0,0.00021917,2]
[362002121,1747932638955,-1342.52,0.00021917,2]
[362002122,1747932638965,-430.0,0.00021917,2]
[362002123,1747932638974,-430.0,0.00021917,2]
[362002124,1747932638983,-430.0,0.00021917,2]
[362002125,1747932638993,-395.69184283,0.00021917,2]
[362002126,1747932639003,-430.0,0.00021917,2]
[362002127,1747932639012,-430.0,0.00021917,2]
[362002128,1747932639022,-430.0,0.00021917,2]
[362002129,1747932639032,-400.0,0.00021917,2]
[362002130,1747932639042,-948.35,0.00021917,2]
[362002131,1747932639051,-1531.1,0.00021917,2]
[362002132,1747932639061,-430.0,0.00021917,2]
[362002133,1747932639071,-430.0,0.00021917,2]
[362002134,1747932639081,-340.0,0.00021917,2]
[362002135,1747932639091,-430.0,0.00021917,2]
[362002136,1747932639101,-430.0,0.00021917,2]
[362002137,1747932639111,-430.0,0.00021917,2]
[362002138,1747932639121,-430.0,0.00021917,2]
[362002139,1747932639132,-430.0,0.00021917,2]
[362002140,1747932639142,-430.0,0.00021917,2]
[362002141,1747932639152,-2871.12,0.00021917,2]
[362002142,1747932639162,-430.0,0.00021917,2]
[362002143,1747932639172,-430.0,0.00021917,2]
[362002144,1747932639182,-430.0,0.00021917,2]
[362002145,1747932639193,-538.75124364,0.00021917,2]
[362002146,1747932639203,-430.0,0.00021917,2]
[362002147,1747932639214,-822.07,0.00021917,2]
[362002148,1747932639223,-430.0,0.00021917,2]
[362002149,1747932639234,-430.0,0.00021917,2]
[362002150,1747932639243,-430.0,0.00021917,2]
[362002151,1747932639253,-430.0,0.00021917,2]
[362002152,1747932639263,-430.0,0.00021917,2]
[362002153,1747932639272,-430.0,0.00021917,2]
[362002154,1747932639282,-438.27813346,0.00021917,2]
[362002155,1747932639292,-430.0,0.00021917,2]
[362002156,1747932639307,-4507.14,0.00021917,2]
[362002157,1747932639317,-430.0,0.00021917,2]
[362002158,1747932639327,-430.0,0.00021917,2]
[362002159,1747932639337,-6239.36624348,0.00021917,2]
[362002160,1747932639370,-263.07917187,0.00021917,2]
[362002161,1747932639388,-3534.35458465,0.00021917,2]
[362002162,1747932639398,-400.0,0.00021917,2]
[362002163,1747932639408,-1010.47,0.00021917,2]
[362002164,1747932639418,-430.0,0.00021917,2]
[362002166,1747932639428,-430.0,0.00021917,2]
[362002167,1747932639437,-534.26,0.00021917,2]
[362002168,1747932639447,-390.0,0.00021917,2]
[362002169,1747932639457,-430.0,0.00021917,2]
[362002170,1747932639467,-390.0,0.00021917,2]
[362002171,1747932639477,-363.43963406,0.00021917,2]
[362002172,1747932639487,-430.0,0.00021917,2]
[362002173,1747932639496,-430.0,0.00021917,2]
[362002174,1747932639507,-430.0,0.00021917,2]
[362002175,1747932639516,-430.0,0.00021917,2]
[362002176,1747932639525,-1098.78,0.00021917,2]
[362002177,1747932639535,-430.0,0.00021917,2]
[362002178,1747932639545,-209.45132408,0.00021917,2]
[362002179,1747932639554,-430.0,0.00021917,2]
[362002180,1747932639564,-3581.12,0.00021917,2]
[362002181,1747932639574,-1559.67,0.00021917,2]
[362002182,1747932639583,-430.0,0.00021917,2]
[362002183,1747932639593,-386.42159089,0.00021917,2]
[362002193,1747932640988,-43.57840911,0.00021917,2]
[362002194,1747932640998,-430.0,0.00021917,2]
[362002195,1747932641009,-137.7532632,0.00021917,2]
[362002196,1747932641206,-860.7067368,0.00021917,2]
[362002197,1747932641216,-400.0,0.00021917,2]
[362002198,1747932641227,-430.0,0.00021917,2]
[362002199,1747932641236,-440.52335262,0.00021917,2]
[362002200,1747932641247,-2151.53,0.00021917,2]
[362002201,1747932641257,-430.0,0.00021917,2]
[362002202,1747932641268,-377.90908767,0.00021917,2]
[362002203,1747932641278,-430.0,0.00021917,2]
[362002204,1747932641288,-430.0,0.00021917,2]
[362002205,1747932641300,-1601.94,0.00021917,2]
[362002206,1747932641311,-430.0,0.00021917,2]
[362002207,1747932641322,-430.0,0.00021917,2]
[362002208,1747932641331,-430.0,0.00021917,2]
[362002209,1747932641341,-430.0,0.00021917,2]
[362002210,1747932641353,-2644.35140459,0.00021969,2]
[362002211,1747932641363,-502.56205692,0.00021973,2]
[362002212,1747932641372,-367.12208631,0.00021973,2]
[362002213,1747932641384,-500.0,0.00021973,2]
[362002214,1747932641394,-500.0,0.00021973,2]
[362002215,1747932641404,-322.03608124,0.00021973,2]
[362002216,1747932641414,-500.0,0.00021973,2]
[362002217,1747932641424,-500.0,0.00021973,2]
[362002218,1747932641435,-500.0,0.00021973,2]
[362002219,1747932641445,-500.0,0.00021973,2]
[362002220,1747932641455,-500.0,0.00021973,2]
[362002221,1747932641466,-500.0,0.00021973,2]
[362002222,1747932641476,-500.98319267,0.00021973,2]
[362002223,1747932641487,-500.0,0.00021973,2]
[362002224,1747932641497,-502.50564121,0.00021973,2]
[362002225,1747932641507,-500.0,0.00021973,2]
[362002226,1747932641518,-500.0,0.00021973,2]
[362002227,1747932641528,-500.0,0.00021973,2]
[362002228,1747932641538,-2014.29811252,0.0002199,2]
[362002229,1747932641550,-273.81313885,0.0002199,2]
[362002230,1747932641562,-2179.38833857,0.0002199,2]
[362002231,1747932641574,-745.10319183,0.0002199,2]
[362002232,1747932641586,-94787.39721823,0.0002199,2]
[362002233,1747932641596,-2785.00817052,0.00021998,2]
[362002234,1747932641606,-14072.26609772,0.00022,2]
[362002235,1747932641616,-2000.0,0.00022,2]
[362002236,1747932641626,-349.72319525,0.00022,2]
[362002237,1747932641636,-167.0,0.00022,2]
[362002238,1747932641648,-160.0,0.00022045,2]
[362002239,1747932641658,-160.0,0.00022045,2]
[362002240,1747932641669,-422.78357425,0.00022045,2]
[362002241,1747932641679,-160.0,0.00022045,2]
[362002242,1747932641688,-160.0,0.00022045,2]
[362002243,1747932641698,-12645.25887003,0.00022045,2]
[362002244,1747932641708,-212.4501065,0.00022045,2]
[362002245,1747932641718,-160.0,0.00022045,2]
[362002246,1747932641728,-160.0,0.00022049,2]
[362002247,1747932641738,-160.0,0.00022049,2]
[362002248,1747932641748,-894.64583333,0.00022049,2]
[362002249,1747932641757,-160.0,0.00022049,2]
[362002250,1747932641767,-151.0,0.000221,9]
[362002251,1747932641779,-218.7950731,0.00022152,2]
[362002252,1747932641789,-595.01077437,0.00022173,2]
[362002253,1747932641799,-501.44409452,0.00022173,2]
[362002254,1747932641809,-568.86813041,0.00022173,2]
[362002255,1747932641819,-582.0124819,0.00022173,2]
[362002256,1747932641829,-500.0,0.00022173,2]
[362002257,1747932641839,-500.0,0.00022173,2]
[362002258,1747932641848,-500.0,0.00022173,2]
[362002259,1747932641858,-500.0,0.00022173,2]
[362002260,1747932641868,-500.0,0.00022173,2]
[362002261,1747932641878,-500.0,0.00022173,2]
[362002262,1747932641888,-2785.00817052,0.00022178,2]
[362002263,1747932641899,-175163.5918455,0.00022181,2]
[362002264,1747932641908,-152.0282,0.00022181,7]
[362002265,1747932641920,-151.0,0.00022181,7]
[362002266,1747932641931,-151.0,0.00022181,7]
[362002267,1747932641941,-363.801773,0.00022181,7]
[362002268,1747932641953,-236.52551,0.00022181,7]
[362002269,1747932641964,-151.0,0.00022181,7]
[362002270,1747932641974,-363.801773,0.00022181,7]
[362002271,1747932641984,-236.52551,0.00022181,7]
[362002272,1747932641995,-151.0,0.00022181,7]
[362002273,1747932642004,-192.79876,0.00022181,7]
[362002274,1747932642014,-192.79876,0.00022181,7]
[362002275,1747932642024,-151.160155,0.00022181,7]
[362002276,1747932642034,-154.697376,0.00022181,7]
[362002277,1747932642044,-151.0,0.00022181,7]
[362002278,1747932642055,-151.0,0.00022181,7]
[362002279,1747932642071,-334.415494,0.00022181,7]
[362002280,1747932642082,-151.0,0.00022181,7]
[362002281,1747932642092,-151.0,0.00022181,7]
[362002282,1747932642102,-334.415494,0.00022181,7]
[362002283,1747932642111,-151.0,0.00022181,7]
[362002284,1747932642122,-151.0,0.00022181,7]
[362002285,1747932642132,-412.116714,0.00022181,7]
[362002286,1747932642142,-151.0,0.00022181,7]
[362002287,1747932642153,-412.116714,0.00022181,7]
[362002288,1747932642163,-151.0,0.00022181,7]
[362002289,1747932642173,-708.704648,0.00022181,7]
[362002290,1747932642183,-708.704648,0.00022181,7]
[362002291,1747932642193,-151.0,0.00022181,7]
[362002292,1747932642203,-1124.529407,0.00022181,7]
[362002293,1747932642213,-1124.529407,0.00022181,7]
[362002294,1747932642223,-182.963225,0.00022181,7]
[362002295,1747932642232,-182.963225,0.00022181,7]
[362002296,1747932642242,-791.288175,0.00022181,7]
[362002297,1747932642252,-791.288175,0.00022181,7]
[362002298,1747932642263,-235.883222,0.00022181,7]
[362002299,1747932642274,-514.841388,0.00022181,7]
[362002300,1747932642284,-235.883222,0.00022181,7]
[362002301,1747932642294,-514.841388,0.00022181,7]
[362002302,1747932642306,-157.756467,0.00022181,7]
[362002303,1747932642317,-157.756467,0.00022181,7]
[362002304,1747932642327,-430.0,0.00022191,2]
[362002305,1747932642338,-430.0,0.00022191,2]
[362002306,1747932642349,-430.0,0.00022191,2]
[362002307,1747932642359,-430.0,0.00022191,2]
[362002308,1747932642369,-430.0,0.00022191,2]
[362002309,1747932642380,-3337.215295,0.00022191,7]
[362002310,1747932642393,-3337.215295,0.00022191,7]
[362002311,1747932642403,-430.0,0.00022191,2]
[362002312,1747932642413,-430.0,0.00022191,2]
[362002313,1747932642422,-470.09,0.00022191,2]
[362002314,1747932642432,-430.0,0.00022191,2]
[362002315,1747932642443,-404.69145368,0.00022191,2]
[362002316,1747932642453,-522.371767,0.00022191,7]
[362002317,1747932642463,-522.371767,0.00022191,7]
[362002318,1747932642474,-151.0,0.00022191,7]
[362002319,1747932642484,-151.0,0.00022191,7]
[362002320,1747932642494,-252.29704008,0.00022191,2]
[362002321,1747932642504,-430.0,0.00022191,2]
[362002323,1747932642514,-430.0,0.00022191,2]
[362002324,1747932642524,-369.33160456,0.00022191,2]
[362002325,1747932642534,-430.0,0.00022191,2]
[362002326,1747932642544,-370.0,0.00022191,2]
[362002327,1747932642553,-345.40279732,0.00022191,2]
[362002328,1747932642563,-500.0,0.00022191,2]
[362002329,1747932642573,-430.0,0.00022191,2]
[362002330,1747932642583,-375.74530684,0.00022191,2]
[362002331,1747932642592,-151.0,0.00022191,7]
[362002333,1747932642603,-430.0,0.00022191,2]
[362002334,1747932642613,-430.0,0.00022191,2]
[362002335,1747932642622,-151.0,0.00022191,7]
[362002337,1747932642633,-220.875543,0.00022191,7]
[362002339,1747932642643,-220.875543,0.00022191,7]
[362002340,1747932642653,-400.0,0.00022191,2]
[362002341,1747932642662,-348.289704,0.00022191,7]
[362002342,1747932642671,-348.289704,0.00022191,7]
[362002343,1747932642681,-430.0,0.00022191,2]
[362002344,1747932642691,-400.0,0.00022191,2]
[362002345,1747932642701,-195.163866,0.00022191,7]
[362002346,1747932642710,-823.415003,0.00022191,7]
[362002347,1747932642720,-195.163866,0.00022191,7]
[362002348,1747932642730,-279.3155292,0.00022191,2]
[362002349,1747932642740,-151.0,0.00022191,7]
[362002350,1747932642750,-151.0,0.00022191,7]
[362002351,1747932642760,-430.0,0.00022191,2]
[362002352,1747932642770,-466.30636841,0.00022191,2]
[362002353,1747932642779,-151.0,0.00022191,2]
[362002354,1747932642789,-430.0,0.00022191,2]
[362002355,1747932642799,-151.0,0.00022191,2]
[362002356,1747932642809,-430.0,0.00022191,2]
[362002357,1747932642819,-430.0,0.00022191,2]
[362002358,1747932642829,-430.0,0.00022191,2]
[362002359,1747932642839,-2038.087431,0.00022191,2]
[362002360,1747932642849,-270.654391,0.00022191,7]
[362002361,1747932642859,-2038.087431,0.00022191,2]
[362002362,1747932642869,-430.0,0.00022191,2]
[362002363,1747932642879,-270.654391,0.00022191,7]
[362002364,1747932642889,-430.0,0.00022191,2]
[362002365,1747932642899,-430.0,0.00022191,2]
[362002366,1747932642910,-430.0,0.00022191,2]
[362002367,1747932642919,-430.0,0.00022191,2]
[362002368,1747932642929,-430.0,0.00022191,2]
[362002369,1747932642939,-430.0,0.00022191,2]
[362002370,1747932642950,-430.0,0.00022191,2]
[362002371,1747932642960,-430.0,0.00022191,2]
[362002372,1747932642970,-356.64939228,0.00022191,2]
[362002373,1747932642980,-570.42658396,0.00022191,2]
[362002374,1747932642990,-430.0,0.00022191,2]
[362002375,1747932643000,-151.0,0.00022191,7]
[362002376,1747932643010,-151.0,0.00022191,7]
[362002377,1747932643020,-500.0,0.00022191,2]
[362002378,1747932643030,-430.0,0.00022191,2]
[362002379,1747932643040,-430.0,0.00022191,2]
[362002380,1747932643050,-430.0,0.00022191,2]
[362002381,1747932643060,-430.0,0.00022191,2]
[362002382,1747932643071,-430.0,0.00022191,2]
[362002383,1747932643081,-430.0,0.00022191,2]
[362002384,1747932643091,-430.0,0.00022191,2]
[362002385,1747932643101,-430.0,0.00022191,2]
[362002386,1747932643112,-430.0,0.00022191,2]
[362002387,1747932643122,-430.0,0.00022191,2]
[362002390,1747932643276,-430.0,0.00022191,2]
[362002392,1747932643288,-151.0,0.00022191,7]
[362002395,1747932643300,-213.2357418,0.00022191,2]
[362002397,1747932643313,-430.0,0.00022191,2]
[362002399,1747932643323,-430.0,0.00022191,2]
[362002401,1747932643332,-430.0,0.00022191,2]
[362002403,1747932643343,-151.0,0.00022191,7]
[362002405,1747932643352,-467.629512,0.00022191,7]
[362002407,1747932643361,-151.0,0.00022191,7]
[362002409,1747932643371,-430.0,0.00022191,2]
[362002411,1747932643382,-430.0,0.00022191,2]
[362002413,1747932643394,-467.629512,0.00022191,7]
[362002415,1747932643404,-1067.1,0.00022191,2]
[362002417,1747932643414,-430.0,0.00022191,2]
[362002419,1747932643423,-430.0,0.00022191,2]
[362002421,1747932643434,-430.0,0.00022191,2]
[362002423,1747932643443,-681.02,0.00022191,2]
[362002425,1747932643453,-410.27104647,0.00022191,2]
[362002427,1747932643462,-430.0,0.00022191,2]
[362002429,1747932643472,-154.7466949,0.00022191,2]
[362002431,1747932643481,-430.0,0.00022191,2]
[362002433,1747932643490,-2440.683196,0.00022191,7]
[362002435,1747932643500,-430.0,0.00022191,2]
[362002437,1747932643510,-430.0,0.00022191,2]
[362002439,1747932643519,-430.0,0.00022191,2]
[362002441,1747932643529,-151.0,0.00022191,7]
[362002443,1747932643538,-265.26388112,0.00022191,2]
[362002445,1747932643547,-2440.683196,0.00022191,7]
[362002447,1747932643557,-199.367002,0.00022191,7]
[362002449,1747932643566,-321.131656,0.00022191,7]
[362002451,1747932643575,-321.131656,0.00022191,7]
[362002453,1747932643585,-370.0,0.00022191,2]
[362002455,1747932643594,-845.890003,0.00022191,7]
[362002457,1747932643604,-845.890003,0.00022191,7]
[362002459,1747932643614,-430.0,0.00022191,2]
[362002461,1747932643623,-321.131656,0.00022191,7]
[362002463,1747932643637,-321.131656,0.00022191,7]
[362002465,1747932643647,-1254.76,0.00022191,2]
[362002467,1747932643656,-151.765709,0.00022191,7]
[362002469,1747932643665,-430.0,0.00022191,2]
[362002471,1747932643675,-430.0,0.00022191,2]
[362002473,1747932643684,-1050.247796,0.00022191,7]